bitfinex-derivatives/quotes_BNBF0:USTF0_20250130
["timestamp","ask_amount","ask_price","bid_price","bid_amount"]
[1738207670223,1.11207771,674.64,673.55,0.29693415]
[1738207672220,1.11207771,674.64,673.56,0.24321569]
[1738207672422,1.11207771,674.64,673.52,1.54853638]
[1738207672423,1.11207771,674.64,673.57,0.29692533]
[1738207673717,1.11207771,674.64,673.58,0.24321958]
[1738207674624,1.11207771,674.63,673.57,0.29692533]
[1738207674824,1.11207771,674.63,673.58,0.24323681]
[1738207675023,1.11207771,674.63,673.57,0.29692533]
[1738207675525,1.11207771,674.63,673.58,0.24324154]
[1738207676522,0.27256745,674.62,673.58,0.24324154]
[1738207676922,1.11207771,674.63,673.58,0.24324154]
[1738207677324,0.2725718,674.62,673.58,0.24324154]
[1738207677521,1.11207771,674.63,673.58,0.24324154]
[1738207678126,1.11207771,674.58,673.6,1.10731267]
[1738207679027,1.11207771,674.58,673.61,0.24325123]
[1738207680828,1.11207771,674.54,673.64,1.10731267]
[1738207683726,1.11207771,674.52,673.63,1.10731267]
[1738207685030,1.11207771,674.52,673.64,0.24318721]
[1738207686635,1.11207771,674.53,673.64,1.35049988]
[1738207686834,1.11207771,674.53,673.65,0.24318721]
[1738207687229,1.11207771,674.53,673.64,1.10731267]
[1738207687430,1.11207771,674.53,673.65,0.24313565]
[1738207687631,1.11207771,674.53,673.64,1.10731267]
[1738207689036,1.11207771,674.53,673.65,1.10731267]
[1738207692438,1.11207771,674.46,673.58,2.65576866]
[1738207695340,1.11207771,674.5,673.58,1.54845599]
[1738207697643,1.11207771,674.51,673.58,1.54845599]
[1738207700744,1.11207771,674.51,673.59,0.24311929]
[1738207701344,1.11207771,674.51,673.58,1.54845599]
[1738207702740,1.11207771,674.51,673.59,0.24304356]
[1738207704948,1.11207771,674.58,673.59,0.24304356]
[1738207706746,1.11207771,674.61,673.6,1.10731267]
[1738207706950,1.11207771,674.61,673.61,0.24304356]
[1738207709253,1.11207771,674.6,673.61,1.10731267]
[1738207710053,1.11207771,674.6,673.62,0.24302203]
[1738207711650,1.11207771,674.6,673.63,0.29689889]
[1738207711850,1.10158521,674.6,673.64,0.24302203]
[1738207712054,1.10158521,674.6,673.65,0.29689007]
[1738207712256,1.10158521,674.6,673.66,0.24248833]
[1738207712457,1.11207771,674.84,673.65,0.29689007]
[1738207712655,0.2725456,674.83,673.66,0.24247274]
[1738207712856,0.27254447,674.82,673.65,0.29689007]
[1738207713057,0.27254447,674.83,673.65,0.29689007]
[1738207713357,0.27254447,674.82,673.65,0.29689007]
[1738207713558,0.27254447,674.81,673.65,0.29689007]
[1738207713860,0.27254447,674.8,673.65,0.29689007]
[1738207714057,0.27254447,674.83,673.65,0.29689007]
[1738207714257,0.27254447,674.82,673.65,0.29689007]
[1738207714558,0.27254447,674.81,673.65,0.29689007]
[1738207714859,0.27254447,674.8,673.65,0.29689007]
[1738207715062,0.27254447,674.83,673.66,0.24243149]
[1738207715355,0.27254447,674.82,673.66,0.24243149]
[1738207715559,0.27254447,674.83,673.66,0.24243149]
[1738207715754,0.27254447,674.82,673.66,0.24243149]
[1738207715953,0.27254447,674.83,673.65,0.29689007]
[1738207716158,0.27254447,674.82,673.65,0.29689007]
[1738207716459,1.11207771,674.84,673.66,0.24241914]
[1738207716460,0.27254447,674.81,673.66,0.24241914]
[1738207716661,0.27254447,674.83,673.67,0.29688126]
[1738207716860,0.27254447,674.83,673.68,0.24241914]
[1738207717060,0.27254447,674.83,673.68,0.53929599]
[1738207717260,0.27254447,674.83,673.68,0.29687685]
[1738207718953,0.27254447,674.86,673.68,0.29687685]
[1738207719157,0.27254447,674.85,673.68,0.29687685]
[1738207719351,0.27254447,674.84,673.68,0.29687685]
[1738207719556,0.27254447,674.86,673.68,0.29687685]
[1738207719757,0.27254447,674.85,673.69,0.24230106]
[1738207719962,0.27254447,674.86,673.69,0.24230106]
[1738207720160,0.27254447,674.85,673.69,0.24230106]
[1738207720356,0.27254447,674.86,673.68,0.29687685]
[1738207720555,0.27254447,674.85,673.68,0.29687685]
[1738207720759,0.27254447,674.84,673.68,0.29687685]
[1738207720957,0.27254447,674.83,673.68,0.29687685]
[1738207721156,0.29635337,674.87,673.68,0.29687685]
[1738207721157,0.27254447,674.82,673.68,0.29687685]
[1738207721355,0.27254447,674.81,673.68,0.29687685]
[1738207721559,0.29635337,674.87,673.68,0.29687685]
[1738207721560,0.27254447,674.86,673.68,0.29687685]
[1738207721759,0.27254447,674.85,673.69,0.2422637]
[1738207721959,0.27254447,674.86,673.69,0.2422637]
[1738207722159,0.27254447,674.85,673.69,0.2422637]
[1738207722362,0.27254447,674.84,673.69,0.2422637]
[1738207722561,0.27254447,674.83,673.69,0.2422637]
[1738207722761,0.27254447,674.86,673.69,0.2422637]
[1738207723964,0.27254447,674.86,673.69,0.53913614]
[1738207724165,0.27254447,674.86,673.7,0.2422637]
[1738207725566,0.27254447,674.86,673.69,0.29687244]
[1738207725766,0.27254447,674.86,673.7,0.24230834]
[1738207729870,0.27252174,674.85,673.71,0.2422755]
[1738207730070,0.27252174,674.84,673.72,0.2422755]
[1738207730265,0.27252174,674.84,673.69,0.29687244]
[1738207730266,0.27252174,674.83,673.73,0.2422755]
[1738207730464,0.27252174,674.85,673.74,0.2422755]
[1738207730669,0.27252174,674.84,673.7,0.2422755]
[1738207730868,0.27252174,674.85,673.69,0.29687244]
[1738207731071,0.27252174,674.84,673.7,0.24231467]
[1738207731271,0.27252174,674.85,673.7,0.24231467]
[1738207731467,0.27252058,674.84,673.71,0.24232466]
[1738207731672,0.27252058,674.85,673.7,0.24232466]
[1738207731970,0.27252058,674.84,673.71,0.24232466]
[1738207732165,0.27252058,674.83,673.72,0.24232466]
[1738207732372,0.27252058,674.82,673.73,0.24232466]
[1738207732672,0.27252058,674.81,673.74,0.24232466]
[1738207732867,0.27252058,674.8,673.69,0.29687244]
[1738207733075,0.27252058,674.85,673.69,0.29687244]
[1738207733270,0.27252058,674.84,673.7,0.24232303]
[1738207733472,0.27252058,674.85,673.7,0.24232303]
[1738207733673,0.27252058,674.84,673.7,0.24232303]
[1738207733874,0.27252058,674.86,673.7,0.24232303]
[1738207734068,0.27252058,674.85,673.7,0.24232303]
[1738207734269,0.27252058,674.86,673.7,0.24232303]
[1738207734475,0.27252058,674.85,673.7,0.24232303]
[1738207734669,0.27252058,674.86,673.7,0.24232303]
[1738207734977,0.27252058,674.85,673.7,0.24232303]
[1738207735177,0.27252058,674.84,673.7,0.24232303]
[1738207735371,0.27252058,674.83,673.71,0.29686363]
[1738207735571,0.27252058,674.82,673.72,0.24232303]
[1738207735774,0.27252058,674.81,673.72,0.24232303]
[1738207735975,0.27252058,674.86,673.72,0.24232303]
[1738207736170,0.27252058,674.85,673.72,0.24232303]
[1738207736374,0.29635337,674.87,673.71,0.29686363]
[1738207736576,0.27251858,674.86,673.72,0.24230694]
[1738207742181,0.27251858,674.86,673.74,1.10731267]
[1738207742182,1.11207771,674.82,673.74,1.10731267]
[1738207742479,0.27251858,674.81,673.75,0.24230694]
[1738207744782,1.11207771,674.82,673.74,1.10731267]
[1738207745081,0.27251807,674.81,673.75,0.24232912]
[1738207745478,0.27251807,674.81,673.76,1.10731267]
[1738207745681,0.27251807,674.81,673.77,0.24232912]
[1738207748286,1.11207771,674.8,673.77,1.34964179]
[1738207748484,0.27251807,674.79,673.78,0.24232912]
[1738207751188,1.11207771,674.78,673.79,1.10731267]
[1738207751388,0.27251807,674.77,673.79,1.10731267]
[1738207753485,0.27252048,674.76,673.79,1.10731267]
[1738207753687,0.27252048,674.75,673.79,1.10731267]
[1738207753887,0.27252048,674.74,673.79,1.10731267]
[1738207754087,0.27252048,674.77,673.79,1.10731267]
[1738207754287,0.27252048,674.76,673.79,1.10731267]
[1738207754484,1.38459819,674.77,673.79,1.10731267]
[1738207754687,0.27252048,674.76,673.79,1.10731267]
[1738207756887,0.27251838,674.75,673.79,1.10731267]
[1738207757090,0.27251838,674.74,673.79,1.10731267]
[1738207757286,0.27251838,674.73,673.79,1.10731267]
[1738207757486,0.27251838,674.72,673.79,1.10731267]
[1738207757690,0.27251838,674.76,673.8,1.10731267]
[1738207757885,0.27251838,674.75,673.8,1.10731267]
[1738207758088,0.27251838,674.76,673.8,1.10731267]
[1738207760192,0.27251838,674.76,673.81,1.10731267]
[1738207763394,1.38459609,674.76,673.81,1.10731267]
[1738207763593,0.27251838,674.75,673.81,1.10731267]
[1738207766896,1.11207771,674.76,673.81,1.10731267]
[1738207767298,1.11207771,674.75,673.82,1.10731267]
[1738207770802,0.29635337,674.87,673.77,1.54805418]
[1738207771002,0.27251623,674.86,673.77,1.54805418]
[1738207775702,0.29635337,674.87,673.77,1.54805418]
[1738207775904,0.2725187,674.86,673.77,1.54805418]
[1738207779512,0.2725187,674.86,673.78,0.2423797]
[1738207780809,0.29635337,674.87,673.77,1.54805418]
[1738207780810,0.27251918,674.85,673.77,1.54805418]
[1738207781015,0.27251918,674.84,673.78,0.24238052]
[1738207781215,0.27251918,674.84,673.77,1.54805418]
[1738207782510,0.27253641,674.83,673.77,1.54805418]
[1738207782715,0.27253641,674.84,673.77,1.54805418]
[1738207782916,0.27253641,674.83,673.77,1.54805418]
[1738207783118,0.27253641,674.84,673.77,1.54805418]
[1738207783317,0.27253641,674.83,673.77,1.54805418]
[1738207783519,0.27253641,674.84,673.77,1.54805418]
[1738207783716,0.27253641,674.83,673.77,1.54805418]
[1738207784019,0.27253641,674.82,673.77,1.54805418]
[1738207784214,0.27253641,674.84,673.77,1.54805418]
[1738207784919,1.11207771,674.71,673.78,1.10731267]
[1738207785120,0.27253641,674.7,673.78,1.10731267]
[1738207788325,0.27253641,674.7,673.77,2.65536685]
[1738207788523,0.27253641,674.69,673.77,2.65536685]
[1738207788722,0.27253641,674.68,673.77,2.65536685]
[1738207788924,0.27253641,674.72,673.77,2.65536685]
[1738207791221,0.27253641,674.72,673.77,1.54805418]
[1738207792423,1.11207771,674.73,673.77,1.54805418]
[1738207792721,0.2725348,674.72,673.77,1.54805418]
[1738207793422,1.11207771,674.73,673.77,1.54805418]
[1738207794016,1.11207771,674.74,673.77,1.54805418]
[1738207797120,0.29635337,674.87,673.77,1.54805418]
[1738207797324,0.27254205,674.86,673.77,1.54805418]
[1738207797519,0.27254187,674.85,673.77,1.54805418]
[1738207797718,0.27254187,674.84,673.77,1.54805418]
[1738207797919,0.27254187,674.83,673.77,1.54805418]
[1738207798123,0.27253499,674.82,673.77,1.54805418]
[1738207798320,0.27253499,674.86,673.77,1.54805418]
[1738207798522,0.27253499,674.85,673.77,1.54805418]
[1738207798725,0.27253499,674.86,673.77,1.54805418]
[1738207798923,0.27253499,674.85,673.77,1.54805418]
[1738207799224,0.27253499,674.84,673.77,1.54805418]
[1738207799426,0.27253499,674.86,673.77,1.54805418]
[1738207799725,0.27253499,674.85,673.77,1.54805418]
[1738207800023,0.27253499,674.84,673.77,1.54805418]
[1738207800219,0.27253499,674.86,673.77,1.54805418]
[1738207800423,0.27253499,674.85,673.77,1.54805418]
[1738207800623,0.27253499,674.86,673.77,1.54805418]
[1738207800823,0.27253499,674.85,673.77,1.54805418]
[1738207801024,0.27253499,674.86,673.77,1.54805418]
[1738207801218,0.27253499,674.85,673.77,1.54805418]
[1738207801420,0.27253499,674.86,673.77,1.54805418]
[1738207801726,0.27253499,674.85,673.77,1.54805418]
[1738207801924,0.27253499,674.84,673.77,1.54805418]
[1738207802125,0.27253499,674.83,673.77,1.54805418]
[1738207802328,0.27253499,674.86,673.77,1.54805418]
[1738207802524,0.27253499,674.85,673.77,1.54805418]
[1738207802721,0.27253499,674.86,673.77,1.54805418]
[1738207803828,0.27252893,674.85,673.77,1.54805418]
[1738207804028,0.27252893,674.86,673.77,1.54805418]
[1738207804228,0.27252893,674.85,673.77,1.54805418]
[1738207805628,0.27252893,674.84,673.77,1.54805418]
[1738207805827,0.27252893,674.86,673.77,1.54805418]
[1738207806023,1.11207771,674.83,673.77,1.54805418]
[1738207806229,0.27252893,674.82,673.77,1.54805418]
[1738207809331,1.11207771,674.76,673.77,1.54805418]
[1738207809533,0.27252893,674.75,673.77,1.54805418]
[1738207809934,0.27253388,674.74,673.77,1.54805418]
[1738207810126,0.27253388,674.75,673.77,1.54805418]
[1738207810327,0.27253388,674.74,673.77,1.54805418]
[1738207810528,0.27253388,674.75,673.77,1.54805418]
[1738207810833,0.27253388,674.74,673.77,1.54805418]
[1738207811032,0.27253388,674.75,673.77,1.54805418]
[1738207812236,1.11207771,674.74,673.77,1.54805418]
[1738207812436,0.27253388,674.73,673.77,1.54805418]
[1738207812735,1.11207771,674.74,673.77,1.54805418]
[1738207815635,0.29635337,674.87,673.77,1.54805418]
[1738207822647,0.27256915,674.86,673.77,1.54805418]
[1738207825650,0.27256915,674.86,673.71,0.29686363]
[1738207825651,1.11207771,674.84,673.71,0.29686363]
[1738207825851,0.27256915,674.83,673.71,0.29686363]
[1738207826853,0.272587,674.82,673.71,0.29686363]
[1738207827053,0.272587,674.81,673.71,0.29686363]
[1738207827354,0.272587,674.8,673.71,0.29686363]
[1738207827553,0.272587,674.83,673.71,0.29686363]
[1738207827754,0.272587,674.82,673.71,0.29686363]
[1738207828054,0.272587,674.81,673.71,0.29686363]
[1738207828246,0.29635337,674.87,673.71,0.29686363]
[1738207828247,1.11207771,674.67,673.71,0.29686363]
[1738207828650,0.27260571,674.66,673.71,0.29686363]
[1738207830355,0.27260761,674.65,673.71,0.29686363]
[1738207830555,0.27260761,674.66,673.71,0.29686363]
[1738207830754,0.27260761,674.65,673.71,0.29686363]
[1738207831051,0.27260761,674.64,673.71,0.29686363]
[1738207831255,0.27260761,674.66,673.71,0.29686363]
[1738207831450,0.27260761,674.65,673.71,0.29686363]
[1738207831658,0.27260761,674.66,673.71,0.29686363]
[1738207831853,0.27260761,674.65,673.71,0.29686363]
[1738207832149,0.27260761,674.64,673.71,0.29686363]
[1738207832349,0.27260761,674.66,673.71,0.29686363]
[1738207832553,1.11043198,674.52,673.71,0.29686363]
[1738207832753,0.27260761,674.51,673.71,0.29686363]
[1738207833855,1.11043198,674.52,673.71,0.29686363]
[1738207834050,0.27261684,674.51,673.71,0.29686363]
[1738207835559,0.27261846,674.5,673.71,0.29686363]
[1738207835853,0.27261846,674.49,673.71,0.29686363]
[1738207836057,1.11043198,674.56,673.71,0.29686363]
[1738207836457,0.27261846,674.55,673.71,0.29686363]
[1738207838656,0.27261846,674.57,673.71,0.29686363]
[1738207838858,0.27261846,674.56,673.71,0.29686363]
[1738207839057,0.27261846,674.57,673.71,0.29686363]
[1738207839860,0.27261846,674.57,673.3,1.10731267]
[1738207840058,0.27261846,674.57,673.31,0.53976953]
[1738207840254,1.11043198,674.58,673.32,0.29703558]
[1738207840456,0.27262692,674.57,673.33,0.24272644]
[1738207840659,0.27262692,674.57,673.34,0.29702676]
[1738207840960,1.11043198,674.54,673.36,1.10731267]
[1738207841159,0.27262692,674.53,673.37,0.24272644]
[1738207842061,0.27262692,674.53,673.38,1.54882929]
[1738207842359,0.27262692,674.53,673.39,0.24272644]
[1738207843258,1.3830589,674.53,673.39,0.24272644]
[1738207843453,0.27262692,674.52,673.39,0.24272644]
[1738207844060,1.11043198,674.53,673.38,1.54882929]
[1738207844356,0.27262869,674.52,673.39,0.24268229]
[1738207845556,1.11043198,674.53,673.38,1.54882929]
[1738207847663,1.11043198,674.53,673.39,0.2970047]
[1738207850566,1.11043198,674.7,673.39,0.2970047]
[1738207850763,0.27262351,674.69,673.39,0.2970047]
[1738207853367,1.11043198,674.67,673.39,0.2970047]
[1738207853568,0.27262449,674.66,673.39,0.2970047]
[1738207855367,0.27262449,674.66,673.4,0.24259376]
[1738207855664,1.11043198,674.63,673.41,0.29699588]
[1738207855861,0.27262449,674.62,673.42,0.24259376]
[1738207856067,0.27262297,674.61,673.43,0.24258757]
[1738207856261,0.27262297,674.62,673.42,0.24258757]
[1738207856468,1.11043198,674.63,673.41,0.29699588]
[1738207856469,0.27262297,674.61,673.43,0.24258757]
[1738207856661,0.27262297,674.6,673.44,0.24258757]
[1738207856861,0.27262297,674.59,673.45,0.24258757]
[1738207857062,0.27262297,674.58,673.46,0.24258757]
[1738207857262,0.27262297,674.57,673.47,0.24258757]
[1738207857467,0.27262297,674.56,673.48,0.24258757]
[1738207857663,0.27262297,674.55,673.49,0.24258757]
[1738207857872,0.27262297,674.54,673.5,0.24258757]
[1738207858169,1.11043198,674.47,673.42,1.10731267]
[1738207860868,1.11043198,674.47,673.43,0.24259601]
[1738207861466,1.11043198,674.47,673.41,1.84568732]
[1738207862770,1.11043198,674.47,673.42,0.24264792]
[1738207862970,1.11043198,674.47,673.43,0.29698706]
[1738207863365,1.11043198,674.46,673.43,1.40429973]
[1738207866266,1.11043198,674.45,673.47,1.10731267]
[1738207867472,1.11043198,674.45,673.48,0.29696501]
[1738207869175,1.11043198,674.58,673.48,0.29696501]
[1738207872877,1.11043198,674.59,673.48,0.29696501]
[1738207875675,1.11043198,674.72,673.48,0.29696501]
[1738207878680,2.270492,675.69,673.48,0.29696501]
[1738207878681,1.11043198,674.74,673.48,0.29696501]
[1738207881780,1.11043198,674.73,673.48,0.29696501]
[1738207882583,0.27261271,674.72,673.48,0.29696501]
[1738207884779,1.11043198,674.5,673.48,0.29696501]
[1738207887489,1.11043198,674.52,673.48,0.29696501]
[1738207889587,1.11043198,674.52,673.44,0.29698265]
[1738207890586,1.11043198,674.65,673.44,0.29698265]
[1738207893693,1.11043198,674.82,673.44,0.29698265]
[1738207895798,1.11043198,674.81,673.44,0.29698265]
[1738207898701,0.27259286,674.8,673.44,0.29698265]
[1738207898901,1.38302484,674.8,673.44,0.29698265]
[1738207899098,0.27259286,674.79,673.44,0.29698265]
[1738207901602,1.11043198,674.63,673.44,0.29698265]
[1738207902300,1.11043198,674.63,673.45,0.24247525]
[1738207902602,1.11043198,674.63,673.46,0.29697383]
[1738207904303,1.11043198,674.63,673.47,0.24241075]
[1738207904496,1.11043198,674.63,673.48,0.29696501]
[1738207904806,1.11043198,674.58,673.49,0.24241075]
[1738207905001,1.11043198,674.58,673.5,0.29695619]
[1738207905203,1.11043198,674.58,673.51,0.24241075]
[1738207905502,1.11043198,674.58,673.52,0.29694738]
[1738207908301,1.11043198,674.67,673.52,0.29694738]
[1738207911210,1.11043198,674.63,673.52,0.29694738]
[1738207913406,1.11043198,674.63,673.53,0.24233216]
[1738207913607,1.11043198,674.63,673.54,0.29693856]
[1738207914614,1.11043198,674.66,673.54,0.29693856]
[1738207914912,0.27257,674.65,673.54,0.29693856]
[1738207915413,1.11043198,674.66,673.55,0.24233673]
[1738207915612,1.11043198,674.66,673.56,0.29692974]
[1738207916714,0.27256605,674.65,673.57,0.24233945]
[1738207916915,0.27256605,674.65,673.58,0.29692092]
[1738207917214,0.27256605,674.65,673.59,0.24235089]
[1738207917813,1.11043198,674.64,673.59,0.24235089]
[1738207918009,0.27256605,674.63,673.59,0.24235089]
[1738207919516,1.11043198,674.64,673.6,0.29691211]
[1738207920313,1.11043198,674.6,673.6,0.29691211]
[1738207923509,1.11043198,674.6,673.61,0.24222092]
[1738207923714,1.11043198,674.67,673.61,0.24222092]
[1738207924516,1.11043198,674.67,673.62,0.29690329]
[1738207924713,1.11043198,674.67,673.63,0.24222092]
[1738207924914,1.11043198,674.67,673.64,0.29689448]
[1738207925111,1.11043198,674.67,673.65,0.24218236]
[1738207925312,1.11043198,674.67,673.65,0.29689007]
[1738207925910,1.11043198,674.67,673.66,0.24216425]
[1738207926113,1.11043198,674.67,673.67,0.29688126]
[1738207927315,0.29635337,674.87,673.67,0.29688126]
[1738207927316,1.11043198,674.68,673.67,0.29688126]
[1738207930220,1.11043198,674.8,673.67,0.29688126]
[1738207933421,1.11043198,674.78,673.67,0.29688126]
[1738207936420,1.11043198,674.77,673.67,0.29688126]
[1738207937415,0.27254342,674.76,673.67,0.29688126]
[1738207937919,0.27254342,674.76,673.68,0.24224117]
[1738207938121,1.11043198,674.77,673.67,0.29688126]
[1738207938420,0.27253941,674.76,673.68,0.24223661]
[1738207938615,0.27253996,674.75,673.69,0.24223332]
[1738207938820,0.27253996,674.74,673.7,0.24223332]
[1738207939019,0.27253996,674.76,673.68,0.24223332]
[1738207939214,0.27253996,674.75,673.69,0.24223332]
[1738207939418,0.27253996,674.74,673.7,0.24223332]
[1738207939614,1.11043198,674.65,673.71,0.24223332]
[1738207939818,0.27253996,674.64,673.67,0.29688126]
[1738207940121,0.27253996,674.64,673.68,0.24221793]
[1738207941519,0.27253996,674.64,673.67,0.29688126]
[1738207941520,1.11043198,674.65,673.67,0.29688126]
[1738207941719,0.27254054,674.64,673.68,0.24218739]
[1738207942321,1.11043198,674.65,673.68,0.24218739]
[1738207942821,1.11043198,674.62,673.68,1.34950006]
[1738207943121,1.11043198,674.62,673.69,0.24218739]
[1738207943321,1.11043198,674.62,673.68,1.10731267]
[1738207943322,1.11043198,674.62,673.7,0.24216749]
[1738207943522,1.11043198,674.62,673.71,0.24216749]
[1738207943816,1.11043198,674.62,673.72,0.24216749]
[1738207944020,1.11043198,674.62,673.73,0.24216749]
[1738207944220,1.11043198,674.62,673.68,1.10731267]
[1738207944221,1.11043198,674.62,673.69,0.24216749]
[1738207944421,1.11043198,674.62,673.7,0.24216464]
[1738207944620,1.11043198,674.62,673.71,0.24216464]
[1738207944821,1.11043198,674.62,673.69,0.24216464]
[1738207945017,1.11043198,674.62,673.7,0.24216464]
[1738207945218,1.11043198,674.62,673.68,1.10731267]
[1738207945421,1.11043198,674.62,673.69,0.29687244]
[1738207946920,1.11043198,674.62,673.7,1.10731267]
[1738207947125,1.11043198,674.63,673.7,1.10731267]
[1738207950529,1.11043198,674.84,673.7,0.29686804]
[1738207953830,1.11043198,674.86,673.7,0.29686804]
[1738207955427,0.54503383,674.85,673.7,0.29686804]
[1738207955635,0.27251722,674.84,673.7,0.29686804]
[1738207956929,1.11043198,674.71,673.7,0.29686804]
[1738207957830,1.11043198,674.71,673.71,0.24210702]
[1738207958437,0.27251745,674.7,673.71,0.24210702]
[1738207958636,1.11043198,674.71,673.72,0.242098]
[1738207958935,0.2725151,674.7,673.73,0.242098]
[1738207959135,0.2725151,674.7,673.71,0.242098]
[1738207959434,1.11043198,674.71,673.72,0.242098]
[1738207959631,1.11043198,674.71,673.71,0.242098]
[1738207959933,1.11043198,674.71,673.72,0.242098]
[1738207960136,1.11043198,674.68,673.72,1.10731267]
[1738207962036,1.11043198,674.68,673.73,0.24208819]
[1738207963236,1.11043198,674.69,673.73,0.24208819]
[1738207963534,1.11043198,674.69,673.71,1.10731267]
[1738207963731,1.11043198,674.69,673.71,1.4041763]
[1738207964435,1.11043198,674.69,673.72,0.2420693]
[1738207964937,1.11043198,674.69,673.71,1.4041763]
[1738207966137,1.11043198,674.72,673.71,0.29686363]
[1738207969840,1.11043198,674.74,673.71,1.4041763]
[1738207971341,1.11043198,674.74,673.72,0.24207263]
[1738207971541,1.11043198,674.74,673.71,1.4041763]
[1738207973340,1.11043198,674.72,673.72,1.34939619]
[1738207973535,1.11043198,674.72,673.73,0.24208352]
[1738207973733,0.27251776,674.71,673.73,0.24208352]
[1738207974541,1.11043198,674.72,673.72,1.10731267]
[1738207976741,1.11043198,674.72,673.71,0.29686363]
[1738207976742,1.11043198,674.68,673.71,1.4041763]
[1738207982746,1.11043198,674.7,673.71,1.4041763]
[1738207985651,1.38299822,674.69,673.71,0.29686363]
[1738207985849,1.11043198,674.69,673.71,0.29686363]
[1738207988647,1.11043198,674.67,673.71,0.29686363]
[1738207992251,1.11043198,674.71,673.71,0.29686363]
[1738207994557,0.27256785,674.7,673.71,0.29686363]
[1738207996053,1.11043198,674.75,673.71,0.29686363]
[1738207996256,0.2725613,674.74,673.71,0.29686363]
[1738207997753,0.27256244,674.73,673.71,0.29686363]
[1738207997958,0.27256244,674.74,673.71,0.29686363]
[1738207998153,0.27256244,674.73,673.71,0.29686363]
[1738207998458,0.27251661,674.85,673.71,0.29686363]
[1738207998459,1.11043198,674.67,673.71,0.29686363]
[1738207998759,0.27256244,674.66,673.71,0.29686363]
[1738207999760,1.11043198,674.67,673.71,0.29686363]
[1738208001264,1.11043198,674.81,673.71,0.29686363]
[1738208001563,0.27255699,674.8,673.71,0.29686363]
[1738208002357,1.11043198,674.81,673.71,0.29686363]
[1738208002565,0.27255699,674.8,673.71,0.29686363]
[1738208004557,1.11043198,674.81,673.71,0.29686363]
[1738208004764,0.2725609,674.8,673.71,0.29686363]
[1738208005063,1.38299288,674.8,673.71,0.29686363]
[1738208005264,0.2725609,674.79,673.71,0.29686363]
[1738208006265,0.27256115,674.78,673.71,0.29686363]
[1738208006564,1.11043198,674.8,673.71,0.29686363]
[1738208006765,0.27256115,674.79,673.71,0.29686363]
[1738208007961,0.27255823,674.78,673.71,0.29686363]
[1738208008159,1.11043198,674.78,673.71,0.29686363]
[1738208009667,0.2725552,674.77,673.71,0.29686363]
[1738208011166,1.11043198,674.78,673.71,0.29686363]
[1738208011367,0.27251661,674.85,673.71,0.29686363]
[1738208011368,1.11043198,674.7,673.71,0.29686363]
[1738208014767,1.11043198,674.73,673.71,0.29686363]
[1738208017670,1.11043198,674.76,673.71,0.29686363]
[1738208020772,1.11043198,674.71,673.71,0.29686363]
[1738208024274,1.11043198,674.79,673.71,0.29686363]
[1738208028080,0.27251661,674.85,673.71,0.29686363]
[1738208028274,0.2725305,674.84,673.71,0.29686363]
[1738208030179,1.11027527,674.76,673.71,0.29686363]
[1738208030378,0.2725305,674.75,673.71,0.29686363]
[1738208030775,0.2725305,674.75,673.72,0.24240462]
[1738208031576,1.11027527,674.76,673.71,0.29686363]
[1738208033378,0.27251661,674.85,673.71,0.29686363]
[1738208045389,0.27250632,674.84,673.71,0.29686363]
[1738208045993,1.11027527,674.8,673.71,0.29686363]
[1738208049099,1.11027527,674.77,673.71,0.29686363]
[1738208051400,1.11027527,674.7,673.71,0.29686363]
[1738208054303,1.11027527,674.67,673.71,0.29686363]
[1738208057106,0.27255787,674.66,673.71,0.29686363]
[1738208058508,1.11027527,674.63,673.71,0.29686363]
[1738208062113,1.11027527,674.67,673.71,0.29686363]
[1738208062308,0.27257173,674.66,673.71,0.29686363]
[1738208062807,1.11027527,674.67,673.71,0.29686363]
[1738208065312,0.27257273,674.66,673.71,0.29686363]
[1738208065816,0.27257273,674.65,673.71,0.29686363]
[1738208066015,1.11027527,674.68,673.71,0.29686363]
[1738208066412,0.27257647,674.67,673.71,0.29686363]
[1738208069625,0.29644561,674.66,673.43,1.10524258]
[1738208069827,0.27257647,674.65,673.43,1.10524258]
[1738208070628,1.40672088,674.66,673.4,1.10524258]
[1738208071222,1.40672088,674.66,673.41,1.84567583]
[1738208071425,1.40672088,674.66,673.42,0.29699147]
[1738208074529,0.29644561,674.66,673.42,0.29699147]
[1738208077038,0.27266386,674.65,673.42,0.29699147]
[1738208079227,0.29644561,674.66,673.42,0.29699147]
[1738208079428,0.2726986,674.65,673.42,0.29699147]
[1738208080528,0.2964544,674.64,673.42,0.29699147]
[1738208080729,0.2726986,674.63,673.42,0.29699147]
[1738208080926,0.29646319,674.62,673.42,0.29699147]
[1738208081232,0.2726986,674.61,673.42,0.29699147]
[1738208081428,0.56917058,674.6,673.42,0.29699147]
[1738208081626,0.2726986,674.59,673.42,0.29699147]
[1738208081833,0.2726986,674.58,673.42,0.29699147]
[1738208082034,0.2726986,674.57,673.42,0.29699147]
[1738208082334,0.2726986,674.56,673.42,0.29699147]
[1738208082535,0.2726986,674.59,673.42,0.29699147]
[1738208082738,0.2726986,674.58,673.42,0.29699147]
[1738208082933,0.2726986,674.57,673.42,0.29699147]
[1738208083134,0.2726986,674.56,673.42,0.29699147]
[1738208083335,0.2726986,674.55,673.42,0.29699147]
[1738208083530,0.2726986,674.59,673.42,0.29699147]